Cogmind - Beta 16 --- EXPLORER MODE // 2025.12.04 @ 09:42:10 Player: K.K.Y. Result: Destroyed by JS-FBR(R) with Subdweller Laser Performance ------------- Evolutions (0) 0 Regions Visited (3) 600 Robots Destroyed (47) 235 Value Destroyed (976) 976 Prototype IDs (13) 260 Alien Tech Used (0) 0 Bonus (0) 0 TOTAL SCORE: 2071 Bonus ------- None Cogmind --------- Core Integrity 0/250 Matter 280/300 Energy 78/100 System Corruption 1% Temperature Warm (166) Movement Treading (360) Ox2 Location -10/Subcaves Parts ------- > --- POWER (1) -------- (None) > --- PROPULSION (2) --- Spiked Treads Spiked Treads > --- UTILITY (3) ------ Huge Storage Unit Experimental Sensor Array Makeshift Hacking Suite > --- WEAPON (2) ------- Autobeam Battle Cannon > --- INVENTORY (25) --- Riot Gun Battle Rifle Mining Laser Makeshift Sword Makeshift Spear SUBCON Basin (Full) Peak State ------------ > --- POWER ------------ Makeshift Power Source > --- PROPULSION ------- Spiked Treads Spiked Treads > --- UTILITY ---------- Huge Storage Unit Experimental Sensor Array Makeshift Hacking Suite > --- WEAPON ----------- Autobeam Battle Cannon > --- INVENTORY -------- Battle Rifle Mining Laser Makeshift Sword Makeshift Spear SUBCON Basin [Rating: 45] Favorites ----------- Power Light Ion Engine Engine Light Ion Engine Propulsion Flight Unit Treads Spiked Treads Flight Unit Flight Unit Utility Experimental Sensor Array Device Experimental Sensor Array Storage Huge Storage Unit Processor Terrain Scan Processor Hackware Makeshift Hacking Suite Weapon Autobeam Energy Gun Autobeam Energy Cannon Powered Cannon Ballistic Gun Assault Rifle Ballistic Cannon Battle Cannon Special Weapon Mining Laser Build | -11 -10 -10 -10 ------- Run | Yrd Mat Min Sub Slots Evolved 1 | . 1 . . Power . | . . . . Propulsion . | . . . . Utility 1 | . 1 . . Weapon . | . . . . Parts Attached 30 | 3 9 4 14 Power 5 | . 1 1 3 Engine 5 | . 1 1 3 Core . | . . . . Reactor . | . . . . Propulsion 11 | 2 4 . 5 Treads 5 | 2 . . 3 Leg . | . . . . Wheel . | . . . . Hover . | . . . . Flight 6 | . 4 . 2 Utility 5 | . . 3 2 Device 2 | . . 2 . Storage 1 | . . . 1 Processor 1 | . . 1 . Hackware 1 | . . . 1 Protection . | . . . . Artifact . | . . . . Weapon 9 | 1 4 . 4 Energy Gun 3 | 1 1 . 1 Energy Cannon 3 | . 2 . 1 Ballistic Gun 1 | . 1 . . Ballistic Cannon 1 | . . . 1 Launcher . | . . . . Special Weapon 1 | . . . 1 Impact Weapon . | . . . . Slashing Weapon . | . . . . Piercing Weapon . | . . . . Special Melee Weapon . | . . . . Unidentified Prototypes 1 | . . 1 . Parts Lost 4 | . . . 4 Power 1 | . . . 1 Propulsion 1 | . . . 1 Utility 1 | . . . 1 Weapon 1 | . . . 1 Highest Loss Streak 2 | . . . 2 To Critical Strikes . | . . . . Average Backups 4 | 3 4 4 4 Power . | . . . . Propulsion . | . . 2 . Utility 1 | . 1 1 1 Weapon 1 | 2 2 1 1 Tool/Special . | . . . . Unused Backups 8 | . 2 . 6 Power . | . . . . Propulsion 2 | . 1 . 1 Utility 1 | . . . 1 Weapon 5 | . 1 . 4 Tool/Special . | . . . . Average Slot Usage (%) 79 | . 43 76 86 Engine 10 | . 2 12 12 Treads 12 | . 17 . 13 Flight 12 | . 7 25 10 Device 14 | . . 18 16 Storage 1 | . . . 2 Processor 5 | . . 7 5 Hackware 4 | . . . 5 Energy Gun 6 | . 13 . 6 Energy Cannon 1 | . 1 . 1 Ballistic Gun 4 | . 1 12 3 Ballistic Cannon 4 | . . . 5 Peak Build Rating 45 | 3 5 18 45 Average Rating 21 | 2 3 14 26 On Entrance 6 | . 3 4 18 Avg Prop Armor Cover (%) . | . . . . Naked Turns . | . . . . Heaviest Build 93 | 2 8 7 93 Greatest Support 40 | 40 40 8 40 Greatest Overweight (x) 3 | . 1 . 3 Average Overweight (x) . | . . . . Largest Inventory Capacity 25 | 5 5 5 25 Average Capacity 7 | 5 5 5 8 Most Carried 20 | 5 5 5 20 Average Carried 6 | 3 4 4 6 Final Capacity 25 | 5 5 5 25 Final Carried 20 | 5 5 5 20 Class Distribution -------------------- 59% | Hacker-Mutant 25% | Hacker-Scout 10% | Hacker-Skirmisher Dominant Class ---------------- Hacker-Mutant | -10/Materials Hacker-Scout | -10/Mines Hacker-Mutant | -10/Subcaves Resources | -11 -10 -10 -10 ----------- Run | Yrd Mat Min Sub Matter Collected 1063 | 230 129 135 569 Remotely . | . . . . Salvage Created 1318 | 154 298 185 681 Parts 109 | 15 24 23 47 Haulers Intercepted 2 | . 2 . . Recyclers Shooed 1 | 1 . . . Parts Field Recycled . | . . . . Retrieved Matter . | . . . . Parts Self-Destructed . | . . . . Prevented . | . . . . Parts Restored . | . . . . Kills | -11 -10 -10 -10 ------- Run | Yrd Mat Min Sub Combat Hostiles Destroyed 30 | . 7 3 20 Guns 13 | . 5 3 5 Cannons 16 | . 1 . 15 AOE 1 | . 1 . . Classes Destroyed 10 | 2 4 1 3 Builder 4 | . . 4 . Tunneler 5 | 4 . 1 . Hauler 2 | . 2 . . Recycler 1 | 1 . . . Turret 2 | . . . 2 Watcher 3 | . 3 . . Swarmer 13 | . 6 3 4 Grunt 2 | . 1 . 1 Sentry 1 | . . . 1 Subdweller 14 | . . . 14 Best Kill Streak 5 | 5 3 2 4 Combat Bots Only 4 | . 2 2 4 Max Kills in Single Turn 2 | 1 1 1 2 Gunslinging . | . . . . Exploded 1 | . 1 . . Melee . | . . . . Uniques/NPCs Destroyed . | . . . . Combat | -11 -10 -10 -10 -------- Run | Yrd Mat Min Sub Hostile Shots Fired 141 | . 25 15 101 Missed 46 | . 8 6 32 Hits 95 | . 17 9 69 Projectile 95 | . 17 9 69 Damage Taken 987 | 12 91 46 838 Core 254 | . 25 20 209 Absorbed by Shields . | . . . . Ignored by Resistances 557 | 7 66 33 451 Core Remaining (%) 100 | 100 . . . Volleys Fired 173 | 10 32 22 109 Largest 2 | 1 2 1 2 Hottest 120 | 40 120 20 120 Shots Fired 231 | 10 41 22 158 Gun 117 | 10 35 22 50 Cannon 105 | . 6 . 99 Launcher . | . . . . Special 9 | . . . 9 Kinetic 103 | . 4 22 77 Thermal 93 | . 12 . 81 Explosive . | . . . . Electromagnetic 35 | 10 25 . . Robot Hit Streak 37 | 5 5 13 37 Robot Miss Streak 2 | 1 2 1 2 Penetration Max . | . . . . Secondary Targets . | . . . . Autonomous 39 | . . . 39 Shots Hit Robots 144 | 8 25 18 93 Core Hits 75 | 6 13 8 48 Critical Kills . | . . . . Critical Parts Destroyed . | . . . . Critical Strikes 2 | . . . 2 Blast 2 | . . . 2 Melee Attacks . | . . . . Impact . | . . . . Slashing . | . . . . Piercing . | . . . . Sneak Attacks . | . . . . Combat Hostiles . | . . . . Follow-up Attacks . | . . . . Damage Inflicted 3209 | 149 454 225 2381 Guns 1346 | 118 321 225 682 Cannons 1753 | . 54 . 1699 Explosions 110 | 31 79 . . Melee . | . . . . Ramming . | . . . . Kinetic 839 | . 26 225 588 Thermal 1981 | 31 157 . 1793 Explosive . | . . . . Electromagnetic 389 | 118 271 . . Impact . | . . . . Slashing . | . . . . Piercing . | . . . . Highest Corruption 1 | . 1 1 1 Average Corruption 1 | . 1 1 1 Corruption Purged . | . . . . Corruption Blocked . | . . . . Effects 35 | . 2 3 30 Message Errors 7 | . . 1 6 Matter Fused 8 | . 1 1 6 Heat Flow Errors 3 | . 1 . 2 Energy Discharges 3 | . . . 3 Parts Rejected 1 | . . . 1 Parts Fused 1 | . . 1 . Data Loss (minor) 5 | . . . 5 Data Loss (major) 2 | . . . 2 Misfires 2 | . . . 2 Alerts 2 | . . . 2 Weapon Failures 1 | . . . 1 Overload Shots . | . . . . Overflow Damage 113 | . 2 . 111 Projectiles 111 | . . . 111 Explosions 2 | . 2 . . Melee . | . . . . Knockbacks 13 | . . . 13 Impact . | . . . . Kinetic 12 | . . . 12 Secondary 1 | . . . 1 Self-Inflicted Damage 12 | 12 . . . Shots 1 | 1 . . . Rammed . | . . . . Targets Rammed . | . . . . Kicked . | . . . . Crushed . | . . . . Highest Temperature 475 | 7 157 . 475 Average Temperature 76 | 4 44 . 87 Received Heat Transfer 273 | . . . 273 Effects 1 | . . . 1 Shutdowns 1 | . . . 1 Siege Activations . | . . . . Martial Activations . | . . . . Shielding Activations . | . . . . Robots Disrupted . | . . . . Combat Hostiles . | . . . . Robots Corrupted . | . . . . Combat Hostiles . | . . . . Parts Fried 2 | . 2 . . Impact Corruptions . | . . . . Robots Melted . | . . . . Combat Hostiles . | . . . . Parts Melted 3 | . . . 3 Heat Transferred 2760 | 50 285 . 2425 Parts Sabotaged . | . . . . Parts Stolen . | . . . . Parts Stripped . | . . . . Power Chain Reactions 3 | 1 2 . . Alert | -11 -10 -10 -10 ------- Run | Yrd Mat Min Sub Maximum Alert Level . | . . . . Low Security (%) 100 | 100 100 100 . Level 1 . | . . . . Level 2 . | . . . . Level 3 . | . . . . Level 4 . | . . . . Level 5 . | . . . . High Security . | . . . . Max Security . | . . . . Peak Influence 53 | 10 53 50 . Initial 5 | . . 5 . Average 6 | 1 9 4 . Influence Increases 599 | 25 214 95 265 Destroy 0b10 Robot/C 360 | . 140 60 160 Destroy 0b10 Robot/NC 75 | 25 25 25 . Destroy Leader 50 | . 40 10 . Successful Hack 2 | . 2 . . Destroy Structure 7 | . 7 . . Lose Combat Pursuer 105 | . . . 105 Influence Decreases 599 | 25 194 115 265 Entered New Map 15 | . . 15 . Time Decay 564 | 25 194 100 245 Lost Part 20 | . . . 20 Squads Dispatched . | . . . . Investigation . | . . . . Extermination . | . . . . Reinforcement . | . . . . Assault . | . . . . Garrison . | . . . . Intercept . | . . . . Searches Triggered . | . . . . Construction Impeded . | . . . . Haulers Reinforced . | . . . . Active Scanning Responses . | . . . . Cargo Convoy Interrupts . | . . . . Stealth | -11 -10 -10 -10 --------- Run | Yrd Mat Min Sub Distress Signals . | . . . . Communications Jammed . | . . . . Distress Signals . | . . . . Times Spotted 43 | . 12 4 27 Peak Tracking Total 6 | . 2 2 6 Tactical Retreats 3 | . . . 3 Traps | -11 -10 -10 -10 ------- Run | Yrd Mat Min Sub Traps Triggered 5 | . 3 . 2 Indirectly . | . . . . Trap Hack Attempts . | . . . . Triggered . | . . . . Disarmed . | . . . . Reprogrammed . | . . . . Reused . | . . . . Traps Extracted . | . . . . Installed . | . . . . Triggered . | . . . . Machines | -11 -10 -10 -10 ---------- Run | Yrd Mat Min Sub Machines Disabled 2 | . . . 2 Max in Single Turn 1 | . . . 1 Machines Repaired . | . . . . Machines Dismantled . | . . . . Machines Sabotaged . | . . . . Overloaded Fab Kills . | . . . . Hacking | -11 -10 -10 -10 --------- Run | Yrd Mat Min Sub Machines Accessed 6 | . 3 . 3 Terminals 2 | . 2 . . Fabricators . | . . . . Repair Stations . | . . . . Recycling Units 1 | . 1 . . Scanalyzers . | . . . . Garrison Access . | . . . . Total Hacks 9 | . 5 . 4 Successful 7 | . 3 . 4 Failed 2 | . 2 . . Catastrophic . | . . . . Database Lockouts . | . . . . Manual 2 | . 2 . . Terminals 2 | . 2 . . Fabricators . | . . . . Repair Stations . | . . . . Recycling Units 3 | . 3 . . Scanalyzers . | . . . . Garrison Access . | . . . . Terminal Hacks 4 | . . . 4 Record 1 | . . . 1 Open Door 1 | . . . 1 Proto ID Catalog 1 | . . . 1 Release Object 1 | . . . 1 Fabricator Hacks . | . . . . Repair Station Hacks . | . . . . Recycling Unit Hacks 1 | . 1 . . Retrieve Components 1 | . 1 . . Scanalyzer . | . . . . Garrison Access Hacks . | . . . . Unauthorized Hacks 2 | . 2 . . Terminals 2 | . 2 . . Botnet 2 | . 2 . . Fabricators . | . . . . Repair Stations . | . . . . Recycling Units . | . . . . Scanalyzers . | . . . . Garrison Access . | . . . . Data Cores Recovered . | . . . . Used . | . . . . Hacking Detections 1 | . 1 . . Full Trace Events 1 | . 1 . . Feedback Events 1 | . 1 . . Corruption 1 | . 1 . . Feedback Blocked . | . . . . Robot Schematics Acquired . | . . . . Robots Built . | . . . . Authchips . | . . . . Time . | . . . . Total Robot Build Rating . | . . . . Part Schematics Acquired . | . . . . Parts Built . | . . . . Authchips . | . . . . Time . | . . . . Total Part Build Rating . | . . . . Part Studies Acquired . | . . . . Parts Repaired . | . . . . Time . | . . . . Parts Recycled . | . . . . Recycled Matter . | . . . . Retrieved Matter . | . . . . Retrieved Components 10 | . 10 . . Parts Scanalyzed . | . . . . Part Schematics Acquired . | . . . . Parts Damaged . | . . . . Bothacking | -11 -10 -10 -10 ------------ Run | Yrd Mat Min Sub Used RIF Installer . | . . . . Robots Hacked . | . . . . Non-combat . | . . . . Combat . | . . . . Robot Hacks Applied . | . . . . Relay Couplers Released . | . . . . Fabnet Peak Effective % . | . . . . Robots Rewired . | . . . . Allies Hacked . | . . . . Hacks Repelled . | . . . . Allies | -11 -10 -10 -10 -------- Run | Yrd Mat Min Sub Total Allies . | . . . . Largest Group . | . . . . Highest-Rated Group . | . . . . Highest-Rated Ally . | . . . . Total Orders . | . . . . Ally Attacks . | . . . . Total Damage . | . . . . Kills . | . . . . Allies Corrupted . | . . . . Allies Melted . | . . . . Intel | -11 -10 -10 -10 ------- Run | Yrd Mat Min Sub Active Infowar (turns) 3891 | . . 515 3376 Sensors 3891 | . . 515 3376 Terrain 2047 | . . 391 1656 Robot Analysis Total . | . . . . Derelict Logs Recovered 3 | . . 1 2 Drone Launches . | . . . . Drone Recoveries . | . . . . Exploration | -11 -10 -10 -10 ------------- Run | Yrd Mat Min Sub Turns Passed 4949 | 155 633 593 3568 Spaces Moved 3412 | 80 633 1048 1651 Core 3 | 3 . . . Treads 1194 | 77 237 . 880 Legs . | . . . . Wheels . | . . . . Hover . | . . . . Flight 2215 | . 396 1048 771 Fastest Speed 37 | 50 37 37 37 Average Speed 96 | 155 83 37 136 Slowest Speed 360 | 160 160 37 360 Overloaded Moves . | . . . . Propulsion Burnouts . | . . . . Robots Hopped 11 | . . 10 1 Potential Cave-ins . | . . . . Cave-ins Triggered . | . . . . Exploration Rate (%) 68 | 6 93 99 76 Regions Visited 3 Branch Regions 2 Pre-discovered Areas 1 | . . 1 . Known Exits Taken 3 | 1 1 1 . Unknown Exits Taken . | . . . . Scrap Searched 18 | . . 1 17 Spaces Dug 5 | . . . 5 Terrain Destroyed 18 | 4 4 . 10 Melee . | . . . . Projectile 10 | . . . 10 AOE 8 | 4 4 . . Terrain Rammed . | . . . . Walls Destroyed . | . . . . Machines Disabled . | . . . . Actions | -11 -10 -10 -10 --------- Run | Yrd Mat Min Sub Total 4856 | 100 700 1220 2836 Wait 1184 | . 3 154 1027 Move 3389 | 79 632 1029 1649 Hop 9 | . . 8 1 Pick Up 30 | 8 6 2 14 Fast Attach 18 | . 9 2 7 Attach 13 | 3 2 2 6 Detach 4 | . 1 . 3 Swap 9 | . 2 . 7 Drop 27 | . 13 1 13 Fire 173 | 10 32 22 109 Melee . | . . . . Ram . | . . . . Kick . | . . . . Crush . | . . . . Escape Stasis . | . . . . Rewire . | . . . . Trap . | . . . . Miscellaneous . | . . . . Route ------- -11/Scrapyard -10/Materials (discovered 3 exits: *Mat x2 / *Min) -10/Mines (discovered 4 exits: *Mat x2 / *Exi / *Sub) -10/Subcaves (discovered 3 exits: *Mat x2 / *Rec) History --------- Turn | Location | Event 9 | -11/Scrapyard | Identified exit to Materials 9 | -11/Scrapyard | Discovered exit to Materials (range 16) 156 | -11/Scrapyard | Entered Materials 156 | -10/Materials | Evolved 1 slot: Utility x1 289 | -10/Materials | Identified exit to Materials 289 | -10/Materials | Discovered exit to Materials (range 14) 309 | -10/Materials | Build established: Hacker-Mutant 605 | -10/Materials | Identified exit to Mines 605 | -10/Materials | Discovered exit to Mines (range 16) 706 | -10/Materials | Discovered exit to Materials (range 14) 789 | -10/Materials | Entered Mines 825 | -10/Mines | Discovered exit to Materials (range 3) 867 | -10/Mines | Found a damaged Exp. Sensor Array with a note attached 867 | -10/Mines | Found Prototype Device 867 | -10/Mines | Identified Exp. Sensor Array 1047 | -10/Mines | Identified exit to Subcaves 1047 | -10/Mines | Discovered exit to Subcaves (range 6) 1131 | -10/Mines | Received a Rocket Launcher from a helpful Derelict 1142 | -10/Mines | Deemed a non-threat by the Exiles lab entrance 1142 | -10/Mines | Identified exit to Exiles 1142 | -10/Mines | Discovered exit to Exiles (range 5) 1153 | -10/Mines | Discovered exit to Materials (range 8) 1314 | -10/Mines | Build established: Hacker-Scout 1382 | -10/Mines | Entered Subcaves 2323 | -10/Subcaves | Learned Materials trap positions 2325 | -10/Subcaves | Shifting Twisted Machinery released Scrap Shield 2335 | -10/Subcaves | Shifting Twisted Machinery released Sub. Laser 2385 | -10/Subcaves | Visited 4L-MR0's lab 2396 | -10/Subcaves | Found Powered Cannon 2398 | -10/Subcaves | Attached Powered Cannon, gained temporary slot: Power 2702 | -10/Subcaves | Build established: Hacker-Skirmisher 2855 | -10/Subcaves | Core integrity fell below 50% 2891 | -10/Subcaves | Identified exit to Recycling 2891 | -10/Subcaves | Discovered exit to Recycling (range 5) 3261 | -10/Subcaves | Disturbed a concealed Subdweller 3324 | -10/Subcaves | Build established: Hacker-Mutant 3601 | -10/Subcaves | A swath of the cavern ceiling suddenly collapsed 3750 | -10/Subcaves | Identified exit to Materials 3750 | -10/Subcaves | Discovered exit to Materials (range 10) 3760 | -10/Subcaves | Core integrity fell below 20% 4045 | -10/Subcaves | Shifting Twisted Machinery released Spk. Treads 4046 | -10/Subcaves | Shifting Twisted Machinery released Mak. Sword 4090 | -10/Subcaves | Discovered exit to Materials (range 14) 4352 | -10/Subcaves | Found SUBCON Basin 4517 | -10/Subcaves | Disturbed a concealed Subdweller 4950 | -10/Subcaves | Destroyed by JS-FBR(R) with Subdweller Laser Last Messages --------------- 04757_ Acquired 25 matter. 04839_ LB-CA5(R) knocked back. 04843_ Sub. Laser melted. 04843_ LB-CA5(R) destroyed. 04860_ CG-AMO(R) affixes Scrap Shield Fragment to Scrap Shield. 04861_ DZ-URR(R) destroyed. 04861_ CG-AMO(R) destroyed. 04863_ R/GKZ6:PCPPNZ9VI6>M>VVJS,UHP8 PXVP 04863_ 4E-YDD(R): "LEAVESUB!" 04866_ 4E-YDD(R) destroyed. 04868_ Acquired 45 matter. 04889_ System corrupted: FCS attempts to trigger Battle Cannon. 04889_ System corrupted: Battle Cannon misfires. 04904_ System corrupted: Energy discharge (-34). 04921_ Acquired 15 matter. 04942_ X4-VM4(R) knocked back. 04947_ Mak. Power Source destroyed. 04948_ X4-VM4(R) knocked back. Map ----- +----------------------------------------------------+ | ?????????# """"" " % ##?????????????????????? | | ?????????# ##"""" " ##??##????????????????? | | ?????????## ?##""""" ##" #?? #######??????????? | | ??????????????### ""#### ##?? ??????????? | | ????????????????## #?## #### ??????????? | | ?????????????????## ###"" """" ?????????????? | | ??????????????????####"""" """ " ?????????????? | | ?????????????????????##""" && """"""?????????????? | | ??????????????????????###""&*&%##""??????????????? | | ????????????????????????#""=&%##?????????????????? | | ????????????????????????####%%!#?????????????????? | | ???????????????????????????#&%##?????????????????? | | ???????????????????????????#*&&##????????????????? | | ??????????????????????????##%! ##???????????????? | | ?????????????????????????## " ###?????????????? | | ?????????????????????????# """" #?????????????? | | ???????????????? ????????# """" ##?????????????? | | ???????????????# ### "" ##??????????????? | | ???????????????# "" ##??????????????? | | ??????????????????## ### "#??????????????? | | ????????????????????????## ## #?????????????? | | ????????????????????????# ##? #?????????????? | | ????????????????????????## #?? #?????????????? | | ?????????????????????????# ##???" #?????????????? | | ????????????????????????## #??????#?????????????? | | ????????????????????????#@ R#????????????????????? | | ????????????????????????## R #???????????????????? | | ?????????????????????????""R##???????????????????? | | ????????????????????????##""#????????????????????? | | ?????????????????????????#! #????????????????????? | | ?????????????????????????#%""????????????????????? | | ?????????????????????????#""""???????????????????? | | ?????????????????????????""""????????????????????? | | ????????????????????? ???"""?????????????????????? | | ?????????????#???????????????????????????????????? | | ?????????????""???? ????"????????????????????????? | | ????????????? "???? ???" ????????????????????????? | | ?????????#??# ##??"#"???????????????????????????? | | ????#??????? ## ""??????#?????????????????????? | | ????????????? # ###??????????????????????????? | | ????????#???? ##?????????????????????????? | | ????????????? ?##????#???????????????????? | | ?#????#?????## ??#???? ?????????????????????? | | ???????????"? #?"??"?????#??????????????????? | | ????##??#??"?# #??""""?#?????????????????????? | | ????????????##""#? #?#"""#??#?#?#????????????????? | | ??????##????## "## ##?#?##?#?"???????????????????# | | ????###???###"" #" ##??####"""?##???????????????? | | ??????##?#??##"## " ##### """##????#??????#????? | | ????#????????# ## ### """"###??????????????? | +----------------------------------------------------+ Best States ------------- Heat Dissipation 25 Energy Generation 20 Energy Capacity 250 Matter Stores 300 Matter Capacity 300 Sight Range 16 Robot Scan Range 20 Terrain Scan Range 16 Terrain Scan Density 85 Resistance: KI 35 Resistance: TH 35 Resistance: EX 35 Resistance: EM 35 Resistance: I 35 Resistance: S 35 Resistance: P 35 Evasion (%) 62 Recoil Reduction 2 Offensive Hacking 31 Item Schematics ----------------- None Robot Schematics ------------------ None Fabricated ------------ Nothing Repaired ---------- Nothing Studied --------- None Alien Tech Used ----------------- None Achievements -------------- Cya! Challenges ------------ None Game ------ Seed ScrapStealthSink Manual? 0 Play Time 00:24:52 Cumulative 165.2 hours Start 2025.12.04 @ 09:16:57 End 2025.12.04 @ 09:42:10 Sessions 1 Manual Loads 0 Difficulty Explorer Special Mode None Game No. 222 Rogue 0 Adventurer 0 Explorer 222 Win Type - Total 0 Types 0/0/0/0/0/0/0/0/0/0 Lore% 70 Gallery% 66 Achievement% 52 Wizard Run 0 Options --------- Layout 1 ASCII 0 Keyboard 0 Movement Mouse Keybinds 0 Fullscreen 1 Font 24/Smallcaps Map View 50x35 Zoom Use 0% Tactical HUD 1 Map Filters NONE Filters NONE Steam 1 RUN: 321c1118-9447-4440-b015-966f25d9037e